fUSD/lending_fUSD_20260503
["ID","MTS","AMOUNT","RATE_DAILY","PERIOD"]
[421524175,1777820015000,-25000.0,0.00038,5]
[421524188,1777820015000,-500.0,0.00038293,21]
[421524235,1777820016000,-12349.0,0.00038986,120]
[421524244,1777820016000,-151.0,0.00038999,30]
[421524243,1777820016000,-500.0,0.00038999,30]
[421524240,1777820016000,-151.0,0.00038999,30]
[421524241,1777820016000,-500.0,0.00038999,30]
[421524242,1777820016000,-151.0,0.00038999,30]
[421524247,1777820016000,-500.0,0.00038999,30]
[421524252,1777820016000,-500.0,0.00038999,30]
[421524251,1777820016000,-151.0,0.00038999,30]
[421524248,1777820016000,-500.0,0.00038999,30]
[421524256,1777820016000,-500.0,0.00038999,30]
[421524253,1777820016000,-151.0,0.00038999,30]
[421524250,1777820016000,-500.0,0.00038999,30]
[421524254,1777820016000,-500.0,0.00038999,30]
[421524255,1777820016000,-151.0,0.00038999,30]
[421524263,1777820016000,-500.0,0.00038999,30]
[421524257,1777820016000,-151.0,0.00038999,30]
[421524260,1777820016000,-500.0,0.00038999,30]
[421524245,1777820016000,-500.0,0.00038999,30]
[421524259,1777820016000,-215.80675693,0.00038999,30]
[421524249,1777820016000,-151.0,0.00038999,30]
[421524246,1777820016000,-151.0,0.00038999,30]
[421524225,1777820016000,-500.0,0.00038937,7]
[421524238,1777820016000,-151.0,0.00038999,30]
[421524264,1777820016000,-500.0,0.00038999,30]
[421524217,1777820016000,-150.0,0.00038882,7]
[421524220,1777820016000,-151.0,0.00038915,30]
[421524219,1777820016000,-2776.8771165,0.00038901,2]
[421524218,1777820016000,-541.0,0.00038884,14]
[421524221,1777820016000,-1505.59519164,0.00038915,2]
[421524233,1777820016000,-151.0,0.00038986,14]
[421524224,1777820016000,-617.39,0.00038937,7]
[421524223,1777820016000,-175.44747214,0.00038925,2]
[421524239,1777820016000,-500.0,0.00038999,30]
[421524226,1777820016000,-553.94,0.00038937,7]
[421524232,1777820016000,-150.0,0.00038973,7]
[421524230,1777820016000,-151.0,0.00038939,30]
[421524228,1777820016000,-477.62,0.00038937,7]
[421524227,1777820016000,-500.0,0.00038937,7]
[421524229,1777820016000,-151.0,0.00038939,30]
[421524231,1777820016000,-150.0,0.00038948,7]
[421524234,1777820016000,-151.0,0.00038986,14]
[421524236,1777820016000,-151.0,0.00038999,30]
[421524237,1777820016000,-169.217036,0.00038999,30]
[421524222,1777820016000,-5000.0,0.00038924,2]
[421524258,1777820016000,-500.0,0.00038999,30]
[421524261,1777820016000,-500.0,0.00038999,30]
[421524304,1777820016000,-151.0,0.00038999,30]
[421524296,1777820016000,-151.0,0.00038999,30]
[421524297,1777820016000,-168.3888056,0.00038999,30]
[421524292,1777820016000,-217.31612977,0.00038999,30]
[421524291,1777820016000,-151.0,0.00038999,30]
[421524294,1777820016000,-162.380719,0.00038999,30]
[421524295,1777820016000,-151.0,0.00038999,30]
[421524290,1777820016000,-156.587,0.00038999,30]
[421524298,1777820016000,-151.0,0.00038999,30]
[421524303,1777820016000,-159.18162079,0.00038999,30]
[421524305,1777820016000,-151.0,0.00038999,30]
[421524301,1777820016000,-151.0,0.00038999,30]
[421524299,1777820016000,-151.0,0.00038999,30]
[421524307,1777820016000,-1389.1822572,0.00039,120]
[421524302,1777820016000,-273.65862619,0.00038999,30]
[421524300,1777820016000,-174.61919141,0.00038999,30]
[421524306,1777820016000,-484.0,0.00039,5]
[421524308,1777820016000,-151.0,0.00039012,14]
[421524309,1777820016000,-1063.25963629,0.00039014,30]
[421524310,1777820016000,-500.0,0.00039014,7]
[421524262,1777820016000,-500.0,0.00038999,30]
[421524311,1777820016000,-398.96,0.00039014,7]
[421524289,1777820016000,-151.0,0.00038999,30]
[421524293,1777820016000,-151.0,0.00038999,30]
[421524288,1777820016000,-174.61919141,0.00038999,30]
[421524286,1777820016000,-151.0,0.00038999,30]
[421524265,1777820016000,-500.0,0.00038999,30]
[421524266,1777820016000,-500.0,0.00038999,30]
[421524268,1777820016000,-500.0,0.00038999,30]
[421524267,1777820016000,-500.0,0.00038999,30]
[421524269,1777820016000,-500.0,0.00038999,30]
[421524271,1777820016000,-151.0,0.00038999,30]
[421524287,1777820016000,-151.0,0.00038999,30]
[421524273,1777820016000,-151.0,0.00038999,30]
[421524270,1777820016000,-500.0,0.00038999,30]
[421524274,1777820016000,-151.0,0.00038999,30]
[421524275,1777820016000,-156.587,0.00038999,30]
[421524272,1777820016000,-151.0,0.00038999,30]
[421524277,1777820016000,-251.0,0.00038999,30]
[421524276,1777820016000,-151.0,0.00038999,30]
[421524278,1777820016000,-162.380719,0.00038999,30]
[421524279,1777820016000,-151.0,0.00038999,30]
[421524285,1777820016000,-338.78318183,0.00038999,30]
[421524284,1777820016000,-151.13418816,0.00038999,30]
[421524282,1777820016000,-168.3888056,0.00038999,30]
[421524280,1777820016000,-260.287,0.00038999,30]
[421524281,1777820016000,-151.0,0.00038999,30]
[421524283,1777820016000,-151.0,0.00038999,30]
[421524352,1777820017000,-300.0,0.0003987,2]
[421524346,1777820017000,-430.17986094,0.00039726,10]
[421524349,1777820017000,-250.0,0.00039781,90]
[421524351,1777820017000,-161.0,0.0003982,120]
[421524353,1777820017000,-150.0,0.0003987,7]
[421524344,1777820017000,-250.0,0.00039671,90]
[421524350,1777820017000,-215.0,0.0003982,120]
[421524337,1777820017000,-537.03704,0.0003953,114]
[421524345,1777820017000,-350.0,0.00039702,6]
[421524343,1777820017000,-150.0,0.00039665,7]
[421524348,1777820017000,-150.0,0.00039768,7]
[421524347,1777820017000,-495.62,0.00039765,2]
[421524355,1777820017000,-500.0,0.00039873,5]
[421524368,1777820017000,-500.0,0.00039937,21]
[421524354,1777820017000,-500.73992349,0.00039873,5]
[421524364,1777820017000,-537.03703,0.00039928,119]
[421524356,1777820017000,-5719.9884,0.00039873,2]
[421524357,1777820017000,-387.30463528,0.00039886,2]
[421524358,1777820017000,-250.0,0.0003989,90]
[421524363,1777820017000,-2776.8771165,0.0003992,15]
[421524360,1777820017000,-32954.33,0.000399,7]
[421524359,1777820017000,-250.0,0.0003989,90]
[421524361,1777820017000,-1100.0,0.000399,14]
[421524362,1777820017000,-172.0,0.00039918,120]
[421524367,1777820017000,-537.03704,0.00039928,119]
[421524338,1777820017000,-537.03703,0.0003953,114]
[421524365,1777820017000,-537.03703,0.00039928,119]
[421524335,1777820017000,-156.70307192,0.00039445,2]
[421524313,1777820017000,-150.0,0.0003905,7]
[421524341,1777820017000,-150.0,0.00039609,7]
[421524319,1777820017000,-155.52814,0.000391,14]
[421524312,1777820017000,-151.0,0.00039024,30]
[421524315,1777820017000,-4277.31344172,0.00039088,2]
[421524314,1777820017000,-179.32581346,0.00039073,5]
[421524316,1777820017000,-1102.57,0.000391,30]
[421524318,1777820017000,-151.0,0.000391,14]
[421524317,1777820017000,-32954.33,0.000391,7]
[421524321,1777820017000,-900.0,0.00039115,21]
[421524320,1777820017000,-151.0,0.000391,30]
[421524323,1777820017000,-297.0,0.00039148,2]
[421524322,1777820017000,-153.14,0.00039142,2]
[421524329,1777820017000,-153.14,0.00039271,2]
[421524331,1777820017000,-150.0,0.00039306,7]
[421524330,1777820017000,-307.0,0.000393,2]
[421524326,1777820017000,-260.28,0.00039219,120]
[421524327,1777820017000,-150.0,0.00039246,7]
[421524324,1777820017000,-150.0,0.00039153,7]
[421524325,1777820017000,-150.0,0.00039173,7]
[421524328,1777820017000,-150.0,0.00039255,7]
[421524333,1777820017000,-153.13,0.00039401,2]
[421524332,1777820017000,-150.0,0.00039358,7]
[421524342,1777820017000,-250.0,0.00039644,63]
[421524334,1777820017000,-150.0,0.00039402,120]
[421524336,1777820017000,-150.0,0.0003946,7]
[421524340,1777820017000,-200.0,0.00039608,20]
[421524339,1777820017000,-150.0,0.00039563,7]
[421524376,1777820017000,-225.34182188,0.00039973,7]
[421524415,1777820017000,-191.59379102,0.0004,74]
[421524375,1777820017000,-290.56746431,0.00039973,7]
[421524400,1777820017000,-500.0,0.00039999,31]
[421524403,1777820017000,-631.21417022,0.00039999,31]
[421524413,1777820017000,-2380.9471603,0.0004,120]
[421524404,1777820017000,-150.0,0.00039999,31]
[421524402,1777820017000,-500.0,0.00039999,31]
[421524407,1777820017000,-220.0,0.0004,30]
[421524406,1777820017000,-50000.0,0.0004,42]
[421524408,1777820017000,-343.45305218,0.0004,120]
[421524405,1777820017000,-150.0,0.00039999,31]
[421524412,1777820017000,-500.0,0.0004,10]
[421524410,1777820017000,-805.10179768,0.0004,120]
[421524409,1777820017000,-3230.43687453,0.0004,120]
[421524396,1777820017000,-178.39236681,0.00039999,31]
[421524414,1777820017000,-369.29,0.0004,120]
[421524423,1777820017000,-188.22,0.0004,120]
[421524424,1777820017000,-624.66,0.0004,120]
[421524417,1777820017000,-820.5631094,0.0004,3]
[421524416,1777820017000,-368.00348676,0.0004,3]
[421524419,1777820017000,-2500.0,0.0004,30]
[421524420,1777820017000,-39532.93713315,0.0004,10]
[421524421,1777820017000,-37213.44303066,0.0004,10]
[421524422,1777820017000,-226.726726,0.0004,30]
[421524426,1777820017000,-150.0,0.00040019,2]
[421524425,1777820017000,-150.0,0.00040019,2]
[421524427,1777820017000,-150.0,0.00040019,2]
[421524366,1777820017000,-537.03704,0.00039928,119]
[421524418,1777820017000,-748.47,0.0004,90]
[421524398,1777820017000,-464.64531133,0.00039999,31]
[421524411,1777820017000,-161.0,0.0004,120]
[421524397,1777820017000,-500.0,0.00039999,31]
[421524399,1777820017000,-435.50195651,0.00039999,31]
[421524370,1777820017000,-322.50177111,0.0003995,10]
[421524369,1777820017000,-900.0,0.00039937,21]
[421524374,1777820017000,-150.0,0.00039973,7]
[421524373,1777820017000,-2846.216201,0.00039972,21]
[421524372,1777820017000,-151.0,0.00039951,14]
[421524371,1777820017000,-151.0,0.00039951,30]
[421524379,1777820017000,-299.136305,0.00039973,7]
[421524378,1777820017000,-150.0,0.00039973,7]
[421524388,1777820017000,-400.0,0.00039995,2]
[421524387,1777820017000,-400.0,0.00039995,2]
[421524389,1777820017000,-400.0,0.00039995,2]
[421524380,1777820017000,-150.0,0.00039973,120]
[421524377,1777820017000,-150.0,0.00039973,7]
[421524381,1777820017000,-390.18808115,0.00039973,2]
[421524386,1777820017000,-400.0,0.00039995,2]
[421524395,1777820017000,-500.0,0.00039999,31]
[421524394,1777820017000,-666.0,0.00039999,30]
[421524391,1777820017000,-400.0,0.00039995,2]
[421524401,1777820017000,-500.0,0.00039999,31]
[421524392,1777820017000,-400.0,0.00039995,2]
[421524393,1777820017000,-161.0,0.00039995,2]
[421524385,1777820017000,-400.0,0.00039995,2]
[421524383,1777820017000,-460.09186448,0.00039986,90]
[421524382,1777820017000,-542173.8003,0.00039983,30]
[421524384,1777820017000,-400.0,0.00039995,2]
[421524390,1777820017000,-400.0,0.00039995,2]
[421524467,1777820018000,-5358.77924,0.00040743,30]
[421524485,1777820018000,-217978.0,0.0004095,60]
[421524468,1777820018000,-900.0,0.00040759,21]
[421524455,1777820018000,-300.0,0.00040548,120]
[421524469,1777820018000,-300.0,0.00040777,10]
[421524465,1777820018000,-32954.33,0.000407,7]
[421524464,1777820018000,-847.16248717,0.000407,120]
[421524463,1777820018000,-1016.02373089,0.00040586,120]
[421524461,1777820018000,-240.51,0.00040584,90]
[421524457,1777820018000,-300.0,0.00040548,120]
[421524466,1777820018000,-4277.31344172,0.00040705,28]
[421524462,1777820018000,-150.0,0.00040584,90]
[421524471,1777820018000,-260.0,0.00040795,120]
[421524475,1777820018000,-107382.16736115,0.00040823,60]
[421524473,1777820018000,-300.0,0.00040822,10]
[421524472,1777820018000,-1700.0,0.000408,14]
[421524474,1777820018000,-666.0,0.00040822,30]
[421524476,1777820018000,-1016.02373089,0.0004086,120]
[421524479,1777820018000,-4189.73477055,0.000409,30]
[421524478,1777820018000,-327429.78,0.00040868,30]
[421524481,1777820018000,-2300.0,0.000409,14]
[421524477,1777820018000,-260.28,0.00040863,120]
[421524482,1777820018000,-2776.8771165,0.00040939,15]
[421524480,1777820018000,-396.3,0.000409,30]
[421524483,1777820018000,-300.0,0.00040949,10]
[421524456,1777820018000,-300.0,0.00040548,120]
[421524470,1777820018000,-666.0,0.00040777,30]
[421524454,1777820018000,-300.0,0.00040548,120]
[421524434,1777820018000,-1016.02373089,0.00040038,120]
[421524460,1777820018000,-178.94,0.00040584,90]
[421524435,1777820018000,-260.28,0.00040041,120]
[421524436,1777820018000,-175.44747211,0.00040043,2]
[421524428,1777820018000,-150.0,0.00040019,2]
[421524429,1777820018000,-150.0,0.00040019,2]
[421524430,1777820018000,-150.0,0.00040019,2]
[421524433,1777820018000,-186.0,0.00040019,2]
[421524432,1777820018000,-150.0,0.00040019,2]
[421524431,1777820018000,-150.0,0.00040019,2]
[421524438,1777820018000,-196.0,0.000401,30]
[421524448,1777820018000,-1177.93,0.000404,90]
[421524441,1777820018000,-152.02,0.00040143,2]
[421524443,1777820018000,-8011.36685006,0.00040215,4]
[421524459,1777820018000,-299.94,0.00040548,120]
[421524437,1777820018000,-150.0,0.000401,30]
[421524439,1777820018000,-195.0340046,0.000401,30]
[421524442,1777820018000,-166.26,0.00040151,2]
[421524444,1777820018000,-1102.57,0.000403,30]
[421524445,1777820018000,-1016.02373089,0.00040312,120]
[421524447,1777820018000,-914.15,0.000404,90]
[421524446,1777820018000,-1214.46,0.000404,90]
[421524449,1777820018000,-1000.0,0.00040421,5]
[421524450,1777820018000,-300.0,0.00040548,120]
[421524458,1777820018000,-300.0,0.00040548,120]
[421524452,1777820018000,-300.0,0.00040548,120]
[421524451,1777820018000,-300.0,0.00040548,120]
[421524453,1777820018000,-300.0,0.00040548,120]
[421524440,1777820018000,-1572.9144472,0.00040112,120]
[421524486,1777820018000,-350.0,0.00040958,3]
[421524501,1777820018000,-10000.0,0.00041096,120]
[421524487,1777820018000,-1500.0,0.00040968,5]
[421524530,1777820018000,-1866.53309,0.00041096,120]
[421524518,1777820018000,-3002.534448,0.00041096,120]
[421524522,1777820018000,-3002.534448,0.00041096,120]
[421524521,1777820018000,-3002.534448,0.00041096,120]
[421524520,1777820018000,-3002.534448,0.00041096,120]
[421524525,1777820018000,-3002.534448,0.00041096,120]
[421524523,1777820018000,-3002.534448,0.00041096,120]
[421524528,1777820018000,-1866.53309,0.00041096,120]
[421524527,1777820018000,-1866.53309,0.00041096,120]
[421524524,1777820018000,-3002.534448,0.00041096,120]
[421524526,1777820018000,-3002.534454,0.00041096,120]
[421524531,1777820018000,-1866.53309,0.00041096,120]
[421524529,1777820018000,-1866.53309,0.00041096,120]
[421524533,1777820018000,-1866.53309,0.00041096,120]
[421524534,1777820018000,-1866.53309,0.00041096,120]
[421524541,1777820018000,-1866.53309,0.00041096,120]
[421524536,1777820018000,-1866.53309,0.00041096,120]
[421524537,1777820018000,-1866.53309,0.00041096,120]
[421524532,1777820018000,-1866.53309,0.00041096,120]
[421524538,1777820018000,-1866.53309,0.00041096,120]
[421524540,1777820018000,-1866.53309,0.00041096,120]
[421524543,1777820018000,-1866.53309,0.00041096,120]
[421524539,1777820018000,-1866.53309,0.00041096,120]
[421524542,1777820018000,-1866.53309,0.00041096,120]
[421524544,1777820018000,-1866.53309,0.00041096,120]
[421524484,1777820018000,-174.68086836,0.00040949,30]
[421524535,1777820018000,-1866.53309,0.00041096,120]
[421524519,1777820018000,-3002.534448,0.00041096,120]
[421524517,1777820018000,-3002.534448,0.00041096,120]
[421524516,1777820018000,-3002.534448,0.00041096,120]
[421524490,1777820018000,-150.0,0.00041,120]
[421524489,1777820018000,-250.0,0.00041,120]
[421524493,1777820018000,-2667.14659268,0.00041,30]
[421524491,1777820018000,-3566.76984314,0.00041,30]
[421524492,1777820018000,-20544.14539985,0.00041,30]
[421524495,1777820018000,-4113.87323153,0.00041,30]
[421524494,1777820018000,-188.167287,0.00041,30]
[421524497,1777820018000,-300.0,0.00041095,10]
[421524496,1777820018000,-5609.66,0.00041,14]
[421524499,1777820018000,-10000.0,0.00041096,120]
[421524505,1777820018000,-10014.0,0.00041096,120]
[421524498,1777820018000,-5000.0,0.00041095,31]
[421524500,1777820018000,-10000.0,0.00041096,120]
[421524488,1777820018000,-50000.0,0.00041,43]
[421524502,1777820018000,-10000.0,0.00041096,120]
[421524512,1777820018000,-3002.534448,0.00041096,120]
[421524514,1777820018000,-3002.534448,0.00041096,120]
[421524513,1777820018000,-3002.534448,0.00041096,120]
[421524504,1777820018000,-10000.0,0.00041096,120]
[421524511,1777820018000,-3002.534448,0.00041096,120]
[421524510,1777820018000,-3002.534448,0.00041096,120]
[421524509,1777820018000,-3002.534448,0.00041096,120]
[421524515,1777820018000,-3002.534448,0.00041096,120]
[421524506,1777820018000,-255.561574,0.00041096,120]
[421524507,1777820018000,-3002.534448,0.00041096,120]
[421524503,1777820018000,-10000.0,0.00041096,120]
[421524508,1777820018000,-3002.534448,0.00041096,120]
[421524590,1777820019000,-1016.02373089,0.00041134,120]
[421524579,1777820019000,-303.361607,0.00041096,120]
[421524574,1777820019000,-303.361607,0.00041096,120]
[421524572,1777820019000,-303.361607,0.00041096,120]
[421524575,1777820019000,-303.361607,0.00041096,120]
[421524576,1777820019000,-303.361607,0.00041096,120]
[421524577,1777820019000,-303.361607,0.00041096,120]
[421524571,1777820019000,-303.361607,0.00041096,120]
[421524584,1777820019000,-303.361607,0.00041096,120]
[421524573,1777820019000,-303.361607,0.00041096,120]
[421524580,1777820019000,-303.361607,0.00041096,120]
[421524589,1777820019000,-387.30463526,0.00041105,120]
[421524582,1777820019000,-303.361607,0.00041096,120]
[421524583,1777820019000,-303.361607,0.00041096,120]
[421524586,1777820019000,-303.361603,0.00041096,120]
[421524585,1777820019000,-303.361607,0.00041096,120]
[421524588,1777820019000,-1102.57,0.000411,30]
[421524587,1777820019000,-2615.0,0.00041096,90]
[421524592,1777820019000,-150.0,0.00041168,7]
[421524602,1777820019000,-1732.0,0.000415,120]
[421524591,1777820019000,-175.44747211,0.0004116,2]
[421524594,1777820019000,-5609.66,0.000413,14]
[421524570,1777820019000,-303.361607,0.00041096,120]
[421524581,1777820019000,-303.361607,0.00041096,120]
[421524569,1777820019000,-303.361607,0.00041096,120]
[421524553,1777820019000,-2000.0,0.00041096,120]
[421524565,1777820019000,-2000.0,0.00041096,120]
[421524545,1777820019000,-1866.53309,0.00041096,120]
[421524548,1777820019000,-2000.0,0.00041096,120]
[421524549,1777820019000,-2000.0,0.00041096,120]
[421524547,1777820019000,-2000.0,0.00041096,120]
[421524546,1777820019000,-1866.533098,0.00041096,120]
[421524555,1777820019000,-2000.0,0.00041096,120]
[421524556,1777820019000,-2000.0,0.00041096,120]
[421524550,1777820019000,-2000.0,0.00041096,120]
[421524552,1777820019000,-2000.0,0.00041096,120]
[421524551,1777820019000,-2000.0,0.00041096,120]
[421524554,1777820019000,-2000.0,0.00041096,120]
[421524598,1777820019000,-350.0,0.00041396,6]
[421524557,1777820019000,-2000.0,0.00041096,120]
[421524559,1777820019000,-2000.0,0.00041096,120]
[421524566,1777820019000,-2000.0,0.00041096,120]
[421524568,1777820019000,-303.361607,0.00041096,120]
[421524561,1777820019000,-2000.0,0.00041096,120]
[421524560,1777820019000,-2000.0,0.00041096,120]
[421524558,1777820019000,-2000.0,0.00041096,120]
[421524564,1777820019000,-2000.0,0.00041096,120]
[421524563,1777820019000,-2000.0,0.00041096,120]
[421524562,1777820019000,-2000.0,0.00041096,120]
[421524567,1777820019000,-303.361607,0.00041096,120]
[421524578,1777820019000,-303.361607,0.00041096,120]
[421524599,1777820019000,-500.0,0.000414,15]
[421524593,1777820019000,-10000.0,0.000412,30]
[421524596,1777820019000,-14101.3223,0.00041303,30]
[421524628,1777820019000,-500.0,0.000417,15]
[421524638,1777820019000,-864.84735242,0.00041863,120]
[421524627,1777820019000,-151.0,0.00041694,120]
[421524629,1777820019000,-250.0,0.0004178,120]
[421524639,1777820019000,-96158.48046278,0.000419,30]
[421524633,1777820019000,-133981.6,0.000418,31]
[421524637,1777820019000,-1460.0,0.000418,15]
[421524631,1777820019000,-201.37848256,0.000418,30]
[421524635,1777820019000,-993.72,0.000418,30]
[421524630,1777820019000,-390.18808115,0.0004179,7]
[421524634,1777820019000,-71324.95028529,0.000418,50]
[421524626,1777820019000,-260.28,0.00041685,120]
[421524636,1777820019000,-375.75,0.000418,120]
[421524600,1777820019000,-200.0,0.00041451,120]
[421524640,1777820019000,-173424.46532784,0.000419,30]
[421524642,1777820019000,-2776.8771165,0.00041958,15]
[421524644,1777820019000,-250.0,0.00041973,120]
[421524646,1777820019000,-1500.0,0.00042,120]
[421524648,1777820019000,-198.41604336,0.00042,30]
[421524645,1777820019000,-541.40700876,0.00042,30]
[421524647,1777820019000,-16621.90729868,0.00042,120]
[421524643,1777820019000,-10130.35639745,0.00041959,120]
[421524649,1777820019000,-500.0,0.00042,120]
[421524650,1777820019000,-34144.57922677,0.00042,120]
[421524632,1777820019000,-510.37,0.000418,90]
[421524622,1777820019000,-240.52,0.00041623,120]
[421524641,1777820019000,-1102.57,0.000419,30]
[421524621,1777820019000,-359.36,0.00041623,120]
[421524618,1777820019000,-153.20028703,0.000416,30]
[421524601,1777820019000,-256771.15025933,0.000415,120]
[421524595,1777820019000,-2900.0,0.000413,15]
[421524597,1777820019000,-326.07,0.00041326,120]
[421524603,1777820019000,-231.04,0.000415,120]
[421524606,1777820019000,-13970.3520946,0.000415,30]
[421524605,1777820019000,-32954.33,0.000415,7]
[421524615,1777820019000,-900.0,0.00041581,120]
[421524610,1777820019000,-500.0,0.00041538,30]
[421524611,1777820019000,-500.0,0.00041538,30]
[421524612,1777820019000,-350.0,0.00041544,4]
[421524609,1777820019000,-649.95076368,0.00041516,10]
[421524608,1777820019000,-165.4681723,0.00041512,2]
[421524623,1777820019000,-227.89,0.00041623,120]
[421524607,1777820019000,-500.0,0.000415,15]
[421524620,1777820019000,-500.0,0.000416,15]
[421524625,1777820019000,-318.68,0.00041644,120]
[421524619,1777820019000,-5609.66,0.000416,14]
[421524624,1777820019000,-8135.33552123,0.00041643,70]
[421524617,1777820019000,-396.3,0.000416,30]
[421524613,1777820019000,-364314.495135,0.00041556,120]
[421524614,1777820019000,-491.30157643,0.00041574,3]
[421524604,1777820019000,-1714.25,0.000415,120]
[421524616,1777820019000,-416.58139398,0.00041581,120]
[421524658,1777820020000,-198.0,0.00042,90]
[421524651,1777820020000,-392.245,0.00042,120]
[421524652,1777820020000,-6691.40507811,0.00042,120]
[421524654,1777820020000,-64225.12154656,0.00042,120]
[421524653,1777820020000,-416.0,0.00037486,2]
[421524664,1777820020000,-284418.04461973,0.00042,30]
[421524655,1777820020000,-317.0,0.00042,120]
[421524657,1777820020000,-4337.66608445,0.00042,30]
[421524656,1777820020000,-30000.0,0.00042,30]
[421524659,1777820020000,-161.0,0.00042,120]
[421524667,1777820020000,-833.09086593,0.00042,30]
[421524661,1777820020000,-4999.99999908,0.00042,43]
[421524663,1777820020000,-1363.62627828,0.00042,30]
[421524662,1777820020000,-412.0,0.00042,120]
[421524666,1777820020000,-1374.83906963,0.00042,30]
[421524665,1777820020000,-2755.76542509,0.00042,30]
[421524668,1777820020000,-3000.0,0.00042,120]
[421524670,1777820020000,-1802.0,0.00042,10]
[421524669,1777820020000,-19246.90913407,0.00042,10]
[421524671,1777820020000,-8769.6,0.00042,10]
[421524660,1777820020000,-6596.43692843,0.00042,120]
[421524673,1777820021000,-91.0,0.00013924,2]
[421524672,1777820021000,-227.0,0.00013924,2]
[421524675,1777820021000,-209.0,0.00013924,2]
[421524676,1777820021000,-318.0,0.00013175,2]
[421524674,1777820021000,252.303572,0.00029106,120]
[421524679,1777820022000,-318.0,0.00013175,2]
[421524677,1777820022000,353.9,0.00026356,120]
[421524678,1777820022000,353.9,0.00028991,120]
[421524681,1777820044000,-300.45549685,0.00013175,2]
[421524682,1777820044000,-4.67163756,0.00013923,2]
[421524680,1777820044000,-12.87286559,0.00013175,2]
[421524683,1777820044000,-295.32836244,0.00013923,2]
[421524684,1777820044000,-22.67163756,0.00014139,2]
[421524685,1777820044000,1463.694322,0.00024792,120]
[421524686,1777820044000,-177.32836244,0.00014139,2]
[421524687,1777820044000,-140.67163756,0.00014139,2]
[421524693,1777820045000,-174.32836244,0.00014139,2]
[421524694,1777820045000,-143.67163756,0.00014139,2]
[421524691,1777820045000,-300.0,0.00013923,2]
[421524692,1777820045000,-18.0,0.00014139,2]
[421524690,1777820045000,1030.452404,0.00024792,120]
[421524688,1777820045000,-10.32836244,0.00014139,2]
[421524689,1777820045000,-307.67163756,0.00014139,2]
[421524695,1777820046000,3428.314053,0.00024792,120]
[421524696,1777820143000,-500.99433335,0.00012277,2]
[421524699,1777820304000,-190.99433335,0.00013505,2]
[421524700,1777820304000,-3.38074637,0.00013505,2]
[421524701,1777820304000,-150.0,0.00014138,2]
[421524698,1777820304000,-310.0,0.00012277,2]
[421524703,1777820305000,-500.99433335,0.00014138,2]
[421524702,1777820305000,-500.99433335,0.00014138,2]
[421524704,1777820306000,-198.0113333,0.00014138,2]
[421524705,1777820306000,-310.0,0.00014139,2]
[421524707,1777820306000,-120.0,0.00014139,2]
[421524708,1777820306000,-31.0,0.00014139,2]
[421524709,1777820306000,-151.0,0.00014139,2]
[421524711,1777820306000,-23.0,0.00014139,2]
[421524706,1777820306000,-190.0,0.00014139,2]
[421524712,1777820306000,-151.0,0.00014139,2]
[421524710,1777820306000,-128.0,0.00014139,2]
[421524718,1777820306000,-151.0,0.00014139,2]
[421524717,1777820306000,-7.0,0.00014139,2]
[421524716,1777820306000,-144.0,0.00014139,2]